[Event "Late-Titled-Tuesday-Blitz-February-20-2024"]
[Site "Chess.com"]
[Date "2024.02.20"]
[Round "2"]
[White "NikoTheodorou"]
[Black "jsdbv18"]
[Result "1/2-1/2"]
[WhiteElo "3057"]
[BlackElo "2629"]
[TimeControl "180+1"]
[EndTime "14:19:36 PST"]
[Termination "Game drawn by 50-move rule"]

1. Nf3 {[%clk 0:03:00.9]} 1... d5 {[%clk 0:02:59.4]} 2. b3 {[%clk 0:03:01.4]}
2... e6 {[%clk 0:02:59.5]} 3. Bb2 {[%clk 0:03:01.7]} 3... Nf6 {[%clk 0:03:00.1]}
4. g3 {[%clk 0:03:02.2]} 4... c5 {[%clk 0:03:00.1]} 5. Bg2 {[%clk 0:03:03.1]}
5... Nc6 {[%clk 0:03:00.3]} 6. O-O {[%clk 0:03:04]} 6... Be7 {[%clk 0:02:57.1]}
7. d3 {[%clk 0:03:03.8]} 7... O-O {[%clk 0:02:54.6]} 8. Nbd2 {[%clk 0:03:04.2]}
8... b6 {[%clk 0:02:51.3]} 9. e4 {[%clk 0:03:04.2]} 9... Bb7 {[%clk 0:02:50.6]}
10. Qe2 {[%clk 0:03:04.7]} 10... Qc7 {[%clk 0:02:50.2]} 11. Rfe1 {[%clk
0:03:04.7]} 11... a5 {[%clk 0:02:43.9]} 12. exd5 {[%clk 0:02:57.9]} 12... Nxd5
{[%clk 0:02:42.7]} 13. Ne4 {[%clk 0:02:51.5]} 13... a4 {[%clk 0:02:31.7]} 14.
Rab1 {[%clk 0:02:51.1]} 14... axb3 {[%clk 0:02:30.8]} 15. axb3 {[%clk 0:02:52]}
15... Ra2 {[%clk 0:02:24.1]} 16. h4 {[%clk 0:02:47.3]} 16... Rfa8 {[%clk
0:02:20.8]} 17. Nfg5 {[%clk 0:02:40.4]} 17... Nd4 {[%clk 0:01:54.6]} 18. Qh5
{[%clk 0:01:58.2]} 18... Bxg5 {[%clk 0:01:53.9]} 19. hxg5 {[%clk 0:01:59.1]}
19... Qe5 {[%clk 0:01:29.7]} 20. Nc3 {[%clk 0:01:26.2]} 20... Qxe1+ {[%clk
0:01:21.6]} 21. Rxe1 {[%clk 0:01:27.1]} 21... Rxb2 {[%clk 0:01:22]} 22. Ne4
{[%clk 0:00:56.8]} 22... Rxc2 {[%clk 0:01:15.5]} 23. Nd6 {[%clk 0:00:56.1]}
23... g6 {[%clk 0:01:11.7]} 24. Qh4 {[%clk 0:00:52.1]} 24... Nf5 {[%clk
0:00:56.1]} 25. Nxf5 {[%clk 0:00:47.9]} 25... gxf5 {[%clk 0:00:54.4]} 26. d4
{[%clk 0:00:45.8]} 26... Raa2 {[%clk 0:00:45.4]} 27. Rf1 {[%clk 0:00:40.1]}
27... Ba6 {[%clk 0:00:38.7]} 28. Bxd5 {[%clk 0:00:22]} 28... Bxf1 {[%clk
0:00:34.5]} 29. Bxe6 {[%clk 0:00:15.1]} 29... fxe6 {[%clk 0:00:24.7]} 30. Qh6
{[%clk 0:00:15.3]} 30... Re2 {[%clk 0:00:16.8]} 31. g6 {[%clk 0:00:08.6]} 31...
hxg6 {[%clk 0:00:16.9]} 32. Qxg6+ {[%clk 0:00:09.5]} 32... Kf8 {[%clk
0:00:17.6]} 33. Qf6+ {[%clk 0:00:08.2]} 33... Ke8 {[%clk 0:00:18.1]} 34. d5
{[%clk 0:00:07.5]} 34... exd5 {[%clk 0:00:17.7]} 35. Qc6+ {[%clk 0:00:08.4]}
35... Ke7 {[%clk 0:00:18]} 36. Qc7+ {[%clk 0:00:06.5]} 36... Kf6 {[%clk
0:00:18.1]} 37. Qd6+ {[%clk 0:00:05.2]} 37... Kf7 {[%clk 0:00:14.1]} 38. Qxd5+
{[%clk 0:00:05.2]} 38... Kf6 {[%clk 0:00:14.4]} 39. Qd8+ {[%clk 0:00:05.7]}
39... Ke6 {[%clk 0:00:14.4]} 40. Qxb6+ {[%clk 0:00:05.8]} 40... Kd5 {[%clk
0:00:14.8]} 41. Qd8+ {[%clk 0:00:05.2]} 41... Ke4 {[%clk 0:00:14.3]} 42. Qg5
{[%clk 0:00:02.9]} 42... Rxf2 {[%clk 0:00:13.9]} 43. Qe7+ {[%clk 0:00:02.9]}
43... Kf3 {[%clk 0:00:12.9]} 44. Qb7+ {[%clk 0:00:03.4]} 44... Kxg3 {[%clk
0:00:13.2]} 45. Qg7+ {[%clk 0:00:03.7]} 45... Kf3 {[%clk 0:00:13.3]} 46. Qb7+
{[%clk 0:00:04.1]} 46... Ke3 {[%clk 0:00:14]} 47. Qe7+ {[%clk 0:00:04.1]} 47...
Kd3 {[%clk 0:00:14.6]} 48. Qd6+ {[%clk 0:00:04.3]} 48... Ke4 {[%clk 0:00:13.9]}
49. Qe6+ {[%clk 0:00:04.7]} 49... Kd4 {[%clk 0:00:14.1]} 50. Qd6+ {[%clk
0:00:05.1]} 50... Ke4 {[%clk 0:00:13.4]} 51. Qc6+ {[%clk 0:00:04.5]} 51... Kf4
{[%clk 0:00:13.3]} 52. Qh6+ {[%clk 0:00:03.6]} 52... Ke5 {[%clk 0:00:13.4]} 53.
Qg7+ {[%clk 0:00:03.9]} 53... Kd6 {[%clk 0:00:13.9]} 54. Qf6+ {[%clk 0:00:04.2]}
54... Kc7 {[%clk 0:00:14.6]} 55. Qe7+ {[%clk 0:00:04.3]} 55... Kb6 {[%clk
0:00:15.3]} 56. Qd6+ {[%clk 0:00:04.9]} 56... Kb5 {[%clk 0:00:15.4]} 57. Qb8+
{[%clk 0:00:05.3]} 57... Ka5 {[%clk 0:00:15.7]} 58. Qa7+ {[%clk 0:00:05.5]}
58... Kb4 {[%clk 0:00:16.3]} 59. Qb6+ {[%clk 0:00:04.4]} 59... Kc3 {[%clk
0:00:15.9]} 60. Qxc5+ {[%clk 0:00:04.5]} 60... Kxb3 {[%clk 0:00:16.2]} 61. Qb6+
{[%clk 0:00:04.3]} 61... Kc3 {[%clk 0:00:16.6]} 62. Qf6+ {[%clk 0:00:04.4]}
62... Kd2 {[%clk 0:00:16.1]} 63. Kxf2 {[%clk 0:00:04.3]} 63... Bd3 {[%clk
0:00:16.6]} 64. Kf3 {[%clk 0:00:03.3]} 64... Be4+ {[%clk 0:00:16.4]} 65. Kf4
{[%clk 0:00:04]} 65... Rc2 {[%clk 0:00:17.1]} 66. Qd4+ {[%clk 0:00:04.3]} 66...
Ke2 {[%clk 0:00:15.4]} 67. Qa4 {[%clk 0:00:03.5]} 67... Kd2 {[%clk 0:00:14.8]}
68. Qa5+ {[%clk 0:00:03.8]} 68... Ke2 {[%clk 0:00:14.8]} 69. Qa6+ {[%clk
0:00:03.6]} 69... Kd2 {[%clk 0:00:14.8]} 70. Qa7 {[%clk 0:00:04.5]} 70... Ke2
{[%clk 0:00:15.2]} 71. Qe3+ {[%clk 0:00:04.5]} 71... Kd1 {[%clk 0:00:15.9]} 72.
Ke5 {[%clk 0:00:03.5]} 72... Rd2 {[%clk 0:00:15.1]} 73. Qg1+ {[%clk 0:00:03.4]}
73... Kc2 {[%clk 0:00:15.5]} 74. Kf4 {[%clk 0:00:03.4]} 74... Rd3 {[%clk
0:00:15.6]} 75. Qa7 {[%clk 0:00:03.6]} 75... Kd2 {[%clk 0:00:15.8]} 76. Qa2+
{[%clk 0:00:03.2]} 76... Kc3 {[%clk 0:00:15.3]} 77. Qa1+ {[%clk 0:00:03.4]}
77... Kc2 {[%clk 0:00:15.7]} 78. Ke5 {[%clk 0:00:04.1]} 78... Rd5+ {[%clk
0:00:15.8]} 79. Kf6 {[%clk 0:00:04.4]} 79... Rd3 {[%clk 0:00:16.7]} 80. Kg5
{[%clk 0:00:04.7]} 80... Kd2 {[%clk 0:00:17]} 81. Qb2+ {[%clk 0:00:04.9]} 81...
Ke3 {[%clk 0:00:17.2]} 82. Qc1+ {[%clk 0:00:04.8]} 82... Ke2 {[%clk 0:00:17.6]}
83. Kf4 {[%clk 0:00:05.4]} 83... Rf3+ {[%clk 0:00:18.2]} 84. Ke5 {[%clk
0:00:06]} 84... Rd3 {[%clk 0:00:19.1]} 85. Qb2+ {[%clk 0:00:06.2]} 85... Rd2
{[%clk 0:00:19.5]} 86. Qb6 {[%clk 0:00:05.5]} 86... Rd5+ {[%clk 0:00:19.8]} 87.
Kf4 {[%clk 0:00:05.4]} 87... Rd3 {[%clk 0:00:20.5]} 88. Qb5 {[%clk 0:00:05.7]}
88... Kd2 {[%clk 0:00:20.6]} 89. Qb2+ {[%clk 0:00:05.6]} 89... Ke1 {[%clk
0:00:21]} 90. Qa2 {[%clk 0:00:05.6]} 90... Kd1 {[%clk 0:00:21.1]} 91. Ke5 {[%clk
0:00:04.5]} 91... Rd2 {[%clk 0:00:20.7]} 92. Qa1+ {[%clk 0:00:04.2]} 92... Ke2
{[%clk 0:00:21.3]} 93. Kf6 {[%clk 0:00:04.6]} 93... Ke3 {[%clk 0:00:21.6]} 94.
Kg5 {[%clk 0:00:04.6]} 94... Rd5 {[%clk 0:00:21]} 95. Qe1+ {[%clk 0:00:04.3]}
95... Kd3 {[%clk 0:00:21.5]} 96. Kf4 {[%clk 0:00:04.7]} 96... Kc4 {[%clk
0:00:21.3]} 97. Qc1+ {[%clk 0:00:04.9]} 97... Kd3 {[%clk 0:00:21.5]} 98. Qb2
{[%clk 0:00:04.4]} 98... Kc4 {[%clk 0:00:21.3]} 99. Ke3 {[%clk 0:00:04.3]} 99...
Rd3+ {[%clk 0:00:21.8]} 100. Ke2 {[%clk 0:00:04.9]} 100... Kd5 {[%clk
0:00:20.4]} 101. Qb5+ {[%clk 0:00:04.4]} 101... Ke6 {[%clk 0:00:20.4]} 102. Qb6+
{[%clk 0:00:04.8]} 102... Ke5 {[%clk 0:00:20.8]} 103. Qb8+ {[%clk 0:00:05.2]}
103... Kf6 {[%clk 0:00:21.2]} 104. Qf8+ {[%clk 0:00:05.3]} 104... Ke5 {[%clk
0:00:21.8]} 105. Qe7+ {[%clk 0:00:05.6]} 105... Kf4 {[%clk 0:00:22]} 106. Qh4+
{[%clk 0:00:05.6]} 106... Ke5 {[%clk 0:00:22.1]} 107. Qh6 {[%clk 0:00:06.2]}
107... Rf3 {[%clk 0:00:21.5]} 108. Qb6 {[%clk 0:00:05.6]} 108... Rd3 {[%clk
0:00:20.7]} 109. Qb8+ {[%clk 0:00:05.9]} 109... Ke6 {[%clk 0:00:20.8]} 110. Qf8
{[%clk 0:00:05.6]} 110... Kd5 {[%clk 0:00:21.2]} 111. Qe7 {[%clk 0:00:05.8]}
111... Kd4 {[%clk 0:00:21.7]} 112. Qd6+ {[%clk 0:00:05.4]} 112... Kc4 {[%clk
0:00:22.2]} 113. Qa6+ {[%clk 0:00:05.6]} 1/2-1/2

[Event "Late-Titled-Tuesday-Blitz-February-20-2024"]
[Site "Chess.com"]
[Date "2024.02.20"]
[Round "3"]
[White "Perecke"]
[Black "aa175"]
[Result "1-0"]
[WhiteElo "2482"]
[BlackElo "2681"]
[TimeControl "180+1"]
[EndTime "14:22:00 PST"]
[Termination "Perecke won by checkmate"]

1. e4 {[%clk 0:02:56.3]} 1... e5 {[%clk 0:03:00.2]} 2. Nf3 {[%clk 0:02:56.2]}
2... Nf6 {[%clk 0:03:01.1]} 3. d4 {[%clk 0:02:55.1]} 3... Nxe4 {[%clk
0:03:01.2]} 4. dxe5 {[%clk 0:02:55.2]} 4... Bc5 {[%clk 0:03:01.7]} 5. Qd5 {[%clk
0:02:52.5]} 5... Nxf2 {[%clk 0:03:02.3]} 6. Qxc5 {[%clk 0:02:41.3]} 6... Nxh1
{[%clk 0:03:00.7]} 7. Bg5 {[%clk 0:02:35.7]} 7... d6 {[%clk 0:02:59.8]} 8. Qe3
{[%clk 0:02:31.9]} 8... Qd7 {[%clk 0:02:59]} 9. exd6+ {[%clk 0:02:31.5]} 9...
Qe6 {[%clk 0:02:58.4]} 10. dxc7 {[%clk 0:02:30.2]} 10... Nc6 {[%clk 0:02:58.6]}
11. Nc3 {[%clk 0:02:30.5]} 11... f6 {[%clk 0:02:55.8]} 12. Bc4 {[%clk
0:02:28.1]} 12... Qxe3+ {[%clk 0:02:54.8]} 13. Bxe3 {[%clk 0:02:29]} 13... Bg4
{[%clk 0:02:53.4]} 14. O-O-O {[%clk 0:02:27.8]} 14... Bxf3 {[%clk 0:02:53.9]}
15. gxf3 {[%clk 0:02:27.7]} 15... Ne5 {[%clk 0:02:54.8]} 16. Bb5+ {[%clk
0:02:20.5]} 16... Kf7 {[%clk 0:02:53.9]} 17. Rxh1 {[%clk 0:02:20.5]} 17... a6
{[%clk 0:02:54.8]} 18. Be2 {[%clk 0:02:18.8]} 18... Rhe8 {[%clk 0:02:54.2]} 19.
f4 {[%clk 0:02:16.5]} 19... Nc6 {[%clk 0:02:50.6]} 20. Bc4+ {[%clk 0:02:16.6]}
20... Ke7 {[%clk 0:02:49.4]} 21. Bc5+ {[%clk 0:02:16.2]} 21... Kd7 {[%clk
0:02:49.9]} 22. Rd1+ {[%clk 0:02:04]} 22... Kxc7 {[%clk 0:02:49.2]} 23. Nd5+
{[%clk 0:02:01.4]} 23... Kb8 {[%clk 0:02:50.1]} 24. Nb6 {[%clk 0:02:00.7]} 24...
Ra7 {[%clk 0:02:50.7]} 25. Bd6# {[%clk 0:02:00.8]} 1-0

[Event "Late-Titled-Tuesday-Blitz-February-20-2024"]
[Site "Chess.com"]
[Date "2024.02.20"]
[Round "3"]
[White "penguingm1"]
[Black "pfalcon1949"]
[Result "1-0"]
[WhiteElo "2832"]
[BlackElo "2000"]
[TimeControl "180+1"]
[EndTime "14:22:21 PST"]
[Termination "penguingm1 won by resignation"]

1. a4 {[%clk 0:03:00.9]} 1... Nf6 {[%clk 0:02:58.8]} 2. Ra3 {[%clk 0:03:00.7]}
2... e6 {[%clk 0:02:59.1]} 3. Rg3 {[%clk 0:02:57.3]} 3... d5 {[%clk 0:02:58.2]}
4. b3 {[%clk 0:02:57.5]} 4... c5 {[%clk 0:02:58]} 5. Bb2 {[%clk 0:02:55]} 5...
Nc6 {[%clk 0:02:57.5]} 6. e3 {[%clk 0:02:52.9]} 6... Bd7 {[%clk 0:02:55.6]} 7.
f4 {[%clk 0:02:48.2]} 7... d4 {[%clk 0:02:41.2]} 8. Nf3 {[%clk 0:02:46.3]} 8...
Ne4 {[%clk 0:02:39.3]} 9. Rh3 {[%clk 0:02:42.3]} 9... f5 {[%clk 0:02:38.7]} 10.
Na3 {[%clk 0:02:40.6]} 10... a6 {[%clk 0:02:28.4]} 11. Nc4 {[%clk 0:02:39.7]}
11... b5 {[%clk 0:02:23.5]} 12. Nce5 {[%clk 0:02:31.4]} 12... Nxe5 {[%clk
0:02:15.4]} 13. Nxe5 {[%clk 0:02:28]} 13... Bd6 {[%clk 0:02:11.2]} 14. Qh5+
{[%clk 0:02:27.1]} 1-0

[Event "Late-Titled-Tuesday-Blitz-February-20-2024"]
[Site "Chess.com"]
[Date "2024.02.20"]
[Round "3"]
[White "Casper"]
[Black "KVAIDAN"]
[Result "1-0"]
[WhiteElo "2562"]
[BlackElo "2370"]
[TimeControl "180+1"]
[EndTime "14:22:50 PST"]
[Termination "Casper won by resignation"]

1. Nf3 {[%clk 0:02:02.6]} 1... f5 {[%clk 0:02:53.9]} 2. d4 {[%clk 0:02:01.7]}
2... Nf6 {[%clk 0:02:53.7]} 3. Bg5 {[%clk 0:02:02]} 3... Ne4 {[%clk 0:02:52.8]}
4. Nc3 {[%clk 0:02:01.9]} 4... Nxg5 {[%clk 0:02:50.8]} 5. Nxg5 {[%clk
0:02:02.1]} 5... e5 {[%clk 0:02:51.2]} 6. Nf3 {[%clk 0:01:57.9]} 6... e4 {[%clk
0:02:50.6]} 7. Ne5 {[%clk 0:01:53.3]} 7... Bb4 {[%clk 0:02:48.5]} 8. e3 {[%clk
0:01:52.5]} 8... d6 {[%clk 0:02:39.7]} 9. Qh5+ {[%clk 0:01:51.6]} 9... g6 {[%clk
0:02:36.5]} 10. Nxg6 {[%clk 0:01:50.6]} 10... hxg6 {[%clk 0:02:31.9]} 11. Qxh8+
{[%clk 0:01:51.5]} 11... Kd7 {[%clk 0:02:28]} 12. Qg7+ {[%clk 0:01:51.2]} 12...
Qe7 {[%clk 0:02:28.2]} 13. Qxg6 {[%clk 0:01:49.8]} 13... Kd8 {[%clk 0:02:27.6]}
14. h4 {[%clk 0:01:44]} 14... Nd7 {[%clk 0:02:25.4]} 15. h5 {[%clk 0:01:43.7]}
15... Nf8 {[%clk 0:02:25.9]} 16. Qg8 {[%clk 0:01:43.1]} 16... Qe6 {[%clk
0:02:22.2]} 17. Bc4 {[%clk 0:01:39.8]} 17... d5 {[%clk 0:02:14.7]} 18. Bxd5
{[%clk 0:01:37.8]} 1-0

[Event "Late-Titled-Tuesday-Blitz-February-20-2024"]
[Site "Chess.com"]
[Date "2024.02.20"]
[Round "3"]
[White "CaspiIsrael"]
[Black "tusplingher"]
[Result "1-0"]
[WhiteElo "2716"]
[BlackElo "2469"]
[TimeControl "180+1"]
[EndTime "14:23:42 PST"]
[Termination "CaspiIsrael won by resignation"]

1. e4 {[%clk 0:03:00.9]} 1... c5 {[%clk 0:03:00]} 2. Nf3 {[%clk 0:03:01]} 2...
d6 {[%clk 0:02:59.4]} 3. d4 {[%clk 0:03:01.5]} 3... cxd4 {[%clk 0:02:59.4]} 4.
Nxd4 {[%clk 0:03:02.4]} 4... Nf6 {[%clk 0:03:00]} 5. f3 {[%clk 0:03:01.8]} 5...
a6 {[%clk 0:02:55]} 6. c4 {[%clk 0:03:01.7]} 6... Nc6 {[%clk 0:02:54.2]} 7. Nc3
{[%clk 0:03:02.1]} 7... g6 {[%clk 0:02:53.9]} 8. Be3 {[%clk 0:03:02]} 8... Bg7
{[%clk 0:02:54.2]} 9. Qd2 {[%clk 0:03:02.4]} 9... O-O {[%clk 0:02:54.5]} 10. Be2
{[%clk 0:03:02.8]} 10... Bd7 {[%clk 0:02:54.8]} 11. h4 {[%clk 0:03:00.8]} 11...
h5 {[%clk 0:02:53.9]} 12. O-O-O {[%clk 0:03:00.5]} 12... Rc8 {[%clk 0:02:53.2]}
13. Kb1 {[%clk 0:03:00.9]} 13... Ne5 {[%clk 0:02:45.2]} 14. b3 {[%clk
0:02:57.7]} 14... Re8 {[%clk 0:02:14.6]} 15. g4 {[%clk 0:02:52.4]} 15... hxg4
{[%clk 0:02:14.3]} 16. h5 {[%clk 0:02:53.3]} 16... gxh5 {[%clk 0:02:09.2]} 17.
Bh6 {[%clk 0:02:52.8]} 17... Ng6 {[%clk 0:01:42.1]} 18. Nf5 {[%clk 0:02:48]}
18... Bxf5 {[%clk 0:01:34.4]} 19. exf5 {[%clk 0:02:48.9]} 19... Ne5 {[%clk
0:01:22.1]} 20. Qg5 {[%clk 0:02:46.7]} 20... Ng6 {[%clk 0:01:19.6]} 21. fxg6
{[%clk 0:02:45.5]} 21... Bxh6 {[%clk 0:01:13.9]} 22. Qxh6 {[%clk 0:02:43]} 22...
Qa5 {[%clk 0:01:13.9]} 23. Nd5 {[%clk 0:02:38.4]} 23... fxg6 {[%clk 0:01:09.5]}
24. Qxg6+ {[%clk 0:02:35.6]} 24... Kf8 {[%clk 0:01:09.3]} 25. Nxf6 {[%clk
0:02:35.5]} 25... exf6 {[%clk 0:01:03.6]} 26. Qxf6+ {[%clk 0:02:34.7]} 26... Kg8
{[%clk 0:01:02]} 27. Rd5 {[%clk 0:02:34.4]} 27... Qd8 {[%clk 0:00:56.6]} 28.
Rg5+ {[%clk 0:02:32.9]} 1-0

[Event "Late-Titled-Tuesday-Blitz-February-20-2024"]
[Site "Chess.com"]
[Date "2024.02.20"]
[Round "3"]
[White "aistrel"]
[Black "StrackedAktonamee"]
[Result "0-1"]
[WhiteElo "2528"]
[BlackElo "2375"]
[TimeControl "180+1"]
[EndTime "14:24:02 PST"]
[Termination "StrackedAktonamee won by checkmate"]

1. d4 {[%clk 0:03:00.9]} 1... Nf6 {[%clk 0:02:50.2]} 2. Nc3 {[%clk 0:03:00.2]}
2... d5 {[%clk 0:02:49.2]} 3. Bf4 {[%clk 0:03:00.7]} 3... g6 {[%clk 0:02:38.2]}
4. Qd2 {[%clk 0:03:00.2]} 4... Bg7 {[%clk 0:02:37]} 5. O-O-O {[%clk 0:03:00.8]}
5... c6 {[%clk 0:02:31.3]} 6. f3 {[%clk 0:02:58.8]} 6... b5 {[%clk 0:02:29.6]}
7. Bh6 {[%clk 0:02:56.8]} 7... Bxh6 {[%clk 0:02:27.8]} 8. Qxh6 {[%clk
0:02:57.7]} 8... b4 {[%clk 0:02:28]} 9. Na4 {[%clk 0:02:58.1]} 9... Nbd7 {[%clk
0:02:23.6]} 10. Kb1 {[%clk 0:02:57.1]} 10... Qa5 {[%clk 0:02:22.4]} 11. b3
{[%clk 0:02:56.8]} 11... Nb6 {[%clk 0:02:20.9]} 12. Nc5 {[%clk 0:02:57.2]} 12...
Nbd7 {[%clk 0:02:12.2]} 13. Nd3 {[%clk 0:02:56.9]} 13... Qb6 {[%clk 0:02:08.6]}
14. e4 {[%clk 0:02:53.3]} 14... dxe4 {[%clk 0:02:05.4]} 15. fxe4 {[%clk
0:02:54.2]} 15... Nxe4 {[%clk 0:02:04.6]} 16. Ne2 {[%clk 0:02:45]} 16... Ndf6
{[%clk 0:02:02.2]} 17. Ne5 {[%clk 0:02:43.4]} 17... Nd5 {[%clk 0:01:58.8]} 18.
Qg7 {[%clk 0:02:40.5]} 18... Rf8 {[%clk 0:01:56.7]} 19. Rd3 {[%clk 0:02:16]}
19... Ba6 {[%clk 0:01:11.1]} 20. Rf3 {[%clk 0:02:11]} 20... Nd2+ {[%clk
0:01:10.3]} 21. Kc1 {[%clk 0:02:10]} 21... Nxf3 {[%clk 0:01:09.1]} 22. gxf3
{[%clk 0:02:10.3]} 22... Bxe2 {[%clk 0:01:02.8]} 23. Bxe2 {[%clk 0:02:11.2]}
23... Qxd4 {[%clk 0:01:02.7]} 24. Rd1 {[%clk 0:02:11.7]} 24... Qa1+ {[%clk
0:00:52.6]} 25. Kd2 {[%clk 0:02:12.1]} 25... Qc3+ {[%clk 0:00:48.6]} 26. Kc1
{[%clk 0:02:11.5]} 26... Ne3 {[%clk 0:00:46.1]} 27. Rd2 {[%clk 0:02:10.8]} 27...
Qa1# {[%clk 0:00:45.8]} 0-1

[Event "Late-Titled-Tuesday-Blitz-February-20-2024"]
[Site "Chess.com"]
[Date "2024.02.20"]
[Round "3"]
[White "Njal28"]
[Black "otrov-11"]
[Result "1-0"]
[WhiteElo "2998"]
[BlackElo "2610"]
[TimeControl "180+1"]
[EndTime "14:24:04 PST"]
[Termination "Njal28 won by resignation"]

1. d4 {[%clk 0:02:55.4]} 1... Nf6 {[%clk 0:02:59.5]} 2. c4 {[%clk 0:02:55]} 2...
e6 {[%clk 0:03:00.1]} 3. Nc3 {[%clk 0:02:55.2]} 3... Bb4 {[%clk 0:03:00.4]} 4.
e3 {[%clk 0:02:55.8]} 4... b6 {[%clk 0:03:00.9]} 5. a3 {[%clk 0:02:54.1]} 5...
Bxc3+ {[%clk 0:03:00.8]} 6. bxc3 {[%clk 0:02:55]} 6... c5 {[%clk 0:02:55]} 7.
Ne2 {[%clk 0:02:54.6]} 7... O-O {[%clk 0:02:52.2]} 8. Ng3 {[%clk 0:02:54.7]}
8... d6 {[%clk 0:02:52.7]} 9. e4 {[%clk 0:02:54.5]} 9... Ne8 {[%clk 0:02:52.2]}
10. Bd3 {[%clk 0:02:52.6]} 10... Nc6 {[%clk 0:02:50.1]} 11. Be3 {[%clk
0:02:52.5]} 11... e5 {[%clk 0:02:49.2]} 12. d5 {[%clk 0:02:52.3]} 12... Na5
{[%clk 0:02:49.6]} 13. O-O {[%clk 0:02:52.8]} 13... Ba6 {[%clk 0:02:50.2]} 14.
Qe2 {[%clk 0:02:53.5]} 14... Qd7 {[%clk 0:02:42.2]} 15. a4 {[%clk 0:02:53.8]}
15... g6 {[%clk 0:02:38.5]} 16. Bh6 {[%clk 0:02:52]} 16... Ng7 {[%clk
0:02:38.7]} 17. f4 {[%clk 0:02:52.6]} 17... exf4 {[%clk 0:02:31.3]} 18. Rxf4
{[%clk 0:02:53.5]} 18... f6 {[%clk 0:02:24.2]} 19. Raf1 {[%clk 0:02:52.8]} 19...
Qe7 {[%clk 0:02:24.8]} 20. h4 {[%clk 0:02:47.5]} 20... Rae8 {[%clk 0:02:14.8]}
21. h5 {[%clk 0:02:44.5]} 21... g5 {[%clk 0:02:15.4]} 22. R4f3 {[%clk
0:02:38.5]} 22... Bc8 {[%clk 0:02:07.4]} 23. Qf2 {[%clk 0:02:28.9]} 23... f5
{[%clk 0:01:39.1]} 24. exf5 {[%clk 0:02:24]} 24... Qf6 {[%clk 0:01:39]} 25. Bxg7
{[%clk 0:02:23.4]} 25... Kxg7 {[%clk 0:01:39.5]} 26. h6+ {[%clk 0:02:07.8]}
26... Kxh6 {[%clk 0:01:34.1]} 27. Nh5 {[%clk 0:02:01.3]} 27... Qe5 {[%clk
0:01:12.8]} 28. Rh3 {[%clk 0:01:57.6]} 28... g4 {[%clk 0:01:13.1]} 29. Qd2+
{[%clk 0:01:55.2]} 1-0

[Event "Late-Titled-Tuesday-Blitz-February-20-2024"]
[Site "Chess.com"]
[Date "2024.02.20"]
[Round "3"]
[White "vugarrasulov"]
[Black "maxip32"]
[Result "1-0"]
[WhiteElo "2932"]
[BlackElo "2655"]
[TimeControl "180+1"]
[EndTime "14:24:07 PST"]
[Termination "vugarrasulov won by resignation"]

1. e4 {[%clk 0:03:00.9]} 1... e6 {[%clk 0:03:00.9]} 2. d4 {[%clk 0:03:00.6]}
2... d5 {[%clk 0:03:01.7]} 3. exd5 {[%clk 0:03:01.2]} 3... exd5 {[%clk
0:03:01.7]} 4. Nf3 {[%clk 0:03:02]} 4... Nf6 {[%clk 0:03:02.4]} 5. Bd3 {[%clk
0:03:01.9]} 5... c5 {[%clk 0:03:03.1]} 6. O-O {[%clk 0:02:57.6]} 6... c4 {[%clk
0:03:03.2]} 7. Re1+ {[%clk 0:02:57.8]} 7... Be7 {[%clk 0:03:03.8]} 8. Bf1 {[%clk
0:02:58.4]} 8... O-O {[%clk 0:03:04.4]} 9. c3 {[%clk 0:02:57]} 9... Nc6 {[%clk
0:02:56.8]} 10. Bf4 {[%clk 0:02:56.8]} 10... Bg4 {[%clk 0:02:54]} 11. Nbd2
{[%clk 0:02:55.2]} 11... Re8 {[%clk 0:02:52.7]} 12. b3 {[%clk 0:02:50.7]} 12...
b5 {[%clk 0:02:52.5]} 13. bxc4 {[%clk 0:02:49.2]} 13... dxc4 {[%clk 0:02:49.9]}
14. Qc2 {[%clk 0:02:39.3]} 14... Nd5 {[%clk 0:02:43.7]} 15. Bg3 {[%clk
0:02:39.6]} 15... Bh5 {[%clk 0:02:42.7]} 16. a4 {[%clk 0:02:23.5]} 16... a6
{[%clk 0:02:40.7]} 17. axb5 {[%clk 0:02:18]} 17... axb5 {[%clk 0:02:41.6]} 18.
Rxa8 {[%clk 0:02:16.8]} 18... Qxa8 {[%clk 0:02:42.5]} 19. Qf5 {[%clk 0:02:16.7]}
19... Bxf3 {[%clk 0:02:39.1]} 20. Qxf3 {[%clk 0:02:15.3]} 20... Qd8 {[%clk
0:01:55.2]} 21. Rb1 {[%clk 0:02:02.5]} 21... b4 {[%clk 0:01:51.3]} 22. Bxc4
{[%clk 0:02:00.5]} 22... bxc3 {[%clk 0:01:44.9]} 23. Bxd5 {[%clk 0:01:57.1]}
23... cxd2 {[%clk 0:01:44.3]} 24. Bxf7+ {[%clk 0:01:48.8]} 24... Kh8 {[%clk
0:01:44.1]} 25. Bxe8 {[%clk 0:01:49.7]} 25... Nxd4 {[%clk 0:01:44.3]} 26. Qd1
{[%clk 0:01:48.8]} 26... Bd6 {[%clk 0:01:36.3]} 27. Bh5 {[%clk 0:01:40.3]} 27...
Bxg3 {[%clk 0:01:30.7]} 28. hxg3 {[%clk 0:01:41.2]} 28... g6 {[%clk 0:01:29.2]}
29. Bf3 {[%clk 0:01:39.5]} 29... Qg5 {[%clk 0:01:28.5]} 30. Rb2 {[%clk
0:01:34.1]} 1-0

[Event "Late-Titled-Tuesday-Blitz-February-20-2024"]
[Site "Chess.com"]
[Date "2024.02.20"]
[Round "3"]
[White "Inepton_Fermion"]
[Black "yuriydovzik"]
[Result "1-0"]
[WhiteElo "2382"]
[BlackElo "2152"]
[TimeControl "180+1"]
[EndTime "14:24:18 PST"]
[Termination "Inepton_Fermion won by resignation"]

1. Nf3 {[%clk 0:03:00.9]} 1... b6 {[%clk 0:02:55.4]} 2. b3 {[%clk 0:03:01]} 2...
Bb7 {[%clk 0:02:53.5]} 3. Bb2 {[%clk 0:03:01.5]} 3... Nf6 {[%clk 0:02:51.3]} 4.
g3 {[%clk 0:03:01.8]} 4... d6 {[%clk 0:02:50]} 5. Bg2 {[%clk 0:03:02.1]} 5... e5
{[%clk 0:02:48.3]} 6. O-O {[%clk 0:03:02.3]} 6... g6 {[%clk 0:02:33.3]} 7. c4
{[%clk 0:03:02]} 7... Bg7 {[%clk 0:02:28.5]} 8. d4 {[%clk 0:02:55.6]} 8... e4
{[%clk 0:02:23.7]} 9. Nfd2 {[%clk 0:02:56.1]} 9... O-O {[%clk 0:02:11.2]} 10.
Nc3 {[%clk 0:02:56.1]} 10... Re8 {[%clk 0:02:09.5]} 11. e3 {[%clk 0:02:56.2]}
11... c6 {[%clk 0:01:59.4]} 12. Ndxe4 {[%clk 0:02:54.8]} 12... Nxe4 {[%clk
0:01:58.4]} 13. Nxe4 {[%clk 0:02:53.8]} 13... d5 {[%clk 0:01:53.5]} 14. Nc3
{[%clk 0:02:50.4]} 14... Na6 {[%clk 0:01:48.2]} 15. cxd5 {[%clk 0:02:47.4]}
15... cxd5 {[%clk 0:01:47.1]} 16. Rc1 {[%clk 0:02:47.1]} 16... Bf8 {[%clk
0:01:38.5]} 17. a3 {[%clk 0:02:44.7]} 17... Nc7 {[%clk 0:01:31.6]} 18. Qf3
{[%clk 0:02:33]} 18... a5 {[%clk 0:01:28.3]} 19. Rc2 {[%clk 0:02:31.7]} 19...
Rc8 {[%clk 0:01:17.9]} 20. Rfc1 {[%clk 0:02:31.4]} 20... Ne6 {[%clk 0:00:53]}
21. Nxd5 {[%clk 0:02:28.8]} 21... Ng5 {[%clk 0:00:40.3]} 22. Nf6+ {[%clk
0:02:24.1]} 22... Kh8 {[%clk 0:00:39.6]} 23. Qxb7 {[%clk 0:02:06.9]} 23... Rxc2
{[%clk 0:00:35.1]} 24. Rxc2 {[%clk 0:02:06.8]} 24... Qxf6 {[%clk 0:00:33.9]} 25.
d5 {[%clk 0:02:06.9]} 1-0